fUSD/lending_fUSD_20250307
["ID","MTS","AMOUNT","RATE_DAILY","PERIOD"]
[355577256,1741313437676,-1061.0,9.915e-05,2]
[355577257,1741313437686,-989.98,9.936e-05,2]
[355577258,1741313437695,-989.98,9.936e-05,2]
[355577259,1741313437705,-151.87,9.936e-05,2]
[355577260,1741313437715,-344.75,9.936e-05,2]
[355577261,1741313437724,-132.72078566,9.936e-05,2]
[355577262,1741313437735,-307.77921434,9.936e-05,2]
[355577263,1741313437745,-989.98,9.936e-05,2]
[355577264,1741313437755,-353.57106552,9.936e-05,2]
[355577265,1741313437778,-636.40893448,9.936e-05,2]
[355577266,1741313437788,-337.56,9.936e-05,2]
[355577267,1741313437798,-4628.73410552,9.95e-05,2]
[355577268,1741313437822,-1426.51243399,9.95e-05,2]
[355577269,1741313437833,-1290.0,9.95e-05,2]
[355577270,1741313437847,-1011.85,9.95e-05,2]
[355577271,1741313437858,-3819.62466951,9.95e-05,2]
[355577272,1741313437875,-900.48983006,9.95e-05,2]
[355577273,1741313437886,-2216.26776514,9.95e-05,2]
[355577274,1741313437898,-612.60000005,9.95e-05,2]
[355577276,1741313437949,-7524.1778732,9.95e-05,2]
[355577278,1741313437961,-1772.14823394,9.95e-05,2]
[355577298,1741313439796,-7.88508859,9.95e-05,2]
[355577299,1741313439806,-1209.015,9.954e-05,2]
[355577300,1741313439816,-506.12,9.96e-05,3]
[355577301,1741313439825,-595.04,9.975e-05,2]
[355577302,1741313439835,-500.0,9.975e-05,2]
[355577303,1741313439845,-1595.35,9.976e-05,2]
[355577304,1741313439855,-787.83,9.976e-05,2]
[355577305,1741313439864,-902.98,9.976e-05,2]
[355577306,1741313439874,-2057.58,9.976e-05,2]
[355577307,1741313439883,-2225.067775,9.976e-05,2]
[355577308,1741313439893,-1584.68,9.976e-05,2]
[355577309,1741313439903,-544.5,9.976e-05,2]
[355577310,1741313439913,-154.363377,9.976e-05,2]
[355577311,1741313439923,-161.768425,9.976e-05,2]
[355577312,1741313439933,-2623.65,9.976e-05,2]
[355577313,1741313439943,-2375.38,9.976e-05,2]
[355577314,1741313439952,-4637.88,9.976e-05,2]
[355577315,1741313439962,-500.0,9.976e-05,2]
[355577316,1741313439971,-1879.027011,9.976e-05,2]
[355577317,1741313439981,-7639.81,9.976e-05,2]
[355577318,1741313439991,-1648.65,9.976e-05,2]
[355577319,1741313440000,-1579.92,9.976e-05,2]
[355577320,1741313440009,-1713.33,9.976e-05,2]
[355577321,1741313440019,-2346.44,9.976e-05,2]
[355577322,1741313440028,-1879.49,9.976e-05,2]
[355577323,1741313440038,-1099.39,9.976e-05,2]
[355577324,1741313440047,-2203.41,9.976e-05,2]
[355577325,1741313440057,-2402.2,9.976e-05,2]
[355577326,1741313440065,-2125.61,9.976e-05,2]
[355577327,1741313440075,-1359.98,9.976e-05,2]
[355577328,1741313440084,-858.85,9.976e-05,2]
[355577329,1741313440096,-500.0,9.976e-05,2]
[355577330,1741313440106,-597.94447804,9.976e-05,2]
[355577331,1741313440117,-3778.16,9.976e-05,2]
[355577332,1741313440127,-3139.08,9.976e-05,2]
[355577333,1741313440136,-2212.74,9.976e-05,2]
[355577334,1741313440146,-1993.39,9.976e-05,2]
[355577335,1741313440156,-668.2,9.976e-05,2]
[355577336,1741313440166,-2080.0,9.976e-05,2]
[355577337,1741313440176,-1201.16,9.976e-05,2]
[355577338,1741313440186,-3806.14,9.976e-05,2]
[355577339,1741313440195,-6051.98,9.976e-05,2]
[355577340,1741313440205,-4176.35,9.976e-05,2]
[355577341,1741313440214,-500.0,9.976e-05,2]
[355577342,1741313440224,-511.48729113,9.976e-05,2]
[355577343,1741313440234,-2716.31,9.976e-05,2]
[355577344,1741313440244,-1701.07,9.976e-05,2]
[355577345,1741313440253,-1096.87888833,9.976e-05,2]
[355577346,1741313440280,-1009.62111167,9.976e-05,2]
[355577347,1741313440290,-500.0,9.976e-05,2]
[355577348,1741313440300,-539.82,9.976e-05,2]
[355577349,1741313440310,-1960.84,9.976e-05,2]
[355577350,1741313440321,-786.06361388,9.976e-05,2]
[355577351,1741313440347,-302.148,9.976e-05,2]
[355577360,1741313444221,-2209.17103484,9.976e-05,2]
[355577361,1741313444233,-4897.1909532,9.976e-05,2]
[355577362,1741313444244,-239.45639808,9.976e-05,2]
[355577363,1741313444253,-9049.80313876,9.976e-05,2]
[355577368,1741313445747,-369.50413004,9.976e-05,2]
[355577369,1741313445836,-552.0327312,9.976e-05,2]
[355577370,1741313445846,-2691.05,9.976e-05,2]
[355577371,1741313445857,-1201.12,9.976e-05,2]
[355577372,1741313445867,-500.0,9.976e-05,2]
[355577373,1741313445876,-1733.17,9.976e-05,2]
[355577374,1741313445886,-183.4017282,9.976e-05,2]
[355577375,1741313445898,-1055.8482718,9.976e-05,2]
[355577376,1741313445907,-546.85522515,9.976e-05,2]
[355577377,1741313445920,-783.21477485,9.976e-05,2]
[355577378,1741313445929,-500.0,9.976e-05,2]
[355577379,1741313445939,-2905.62,9.976e-05,2]
[355577380,1741313445948,-500.0,9.976e-05,2]
[355577381,1741313445957,-1426.14,9.976e-05,2]
[355577382,1741313445967,-7217.96,9.976e-05,2]
[355577383,1741313445977,-503.31,9.976e-05,2]
[355577384,1741313445986,-695.33,9.976e-05,2]
[355577385,1741313445996,-511.19411909,9.976e-05,2]
[355577386,1741313446005,-153.83702414,9.976e-05,2]
[355577387,1741313446015,-500.0,9.976e-05,2]
[355577388,1741313446024,-500.0,9.976e-05,2]
[355577389,1741313446034,-500.0,9.976e-05,2]
[355577390,1741313446043,-500.0,9.976e-05,2]
[355577391,1741313446053,-500.0,9.976e-05,2]
[355577392,1741313446062,-500.0,9.976e-05,2]
[355577393,1741313446071,-642.78795926,9.976e-05,2]
[355577394,1741313446080,-500.0,9.977e-05,2]
[355577395,1741313446089,-500.0,9.977e-05,2]
[355577396,1741313446100,-500.0,9.977e-05,2]
[355577397,1741313446110,-500.0,9.977e-05,2]
[355577398,1741313446119,-667.78,9.977e-05,2]
[355577399,1741313446128,-500.0,9.977e-05,2]
[355577400,1741313446137,-503.75850822,9.977e-05,2]
[355577401,1741313446147,-613.93,9.977e-05,2]
[355577402,1741313446156,-500.0,9.977e-05,2]
[355577403,1741313446166,-500.0,9.977e-05,2]
[355577404,1741313446175,-500.0,9.977e-05,2]
[355577405,1741313446184,-500.0,9.977e-05,2]
[355577406,1741313446194,-508.85628874,9.977e-05,2]
[355577407,1741313446203,-500.0,9.977e-05,2]
[355577408,1741313446212,-500.0,9.977e-05,2]
[355577409,1741313446222,-500.0,9.977e-05,2]
[355577410,1741313446231,-500.0,9.977e-05,2]
[355577411,1741313446240,-500.0,9.977e-05,2]
[355577412,1741313446250,-500.0,9.977e-05,2]
[355577413,1741313446259,-500.0,9.977e-05,2]
[355577414,1741313446268,-655.39,9.977e-05,2]
[355577415,1741313446277,-500.0,9.977e-05,2]
[355577416,1741313446286,-941.08,9.977e-05,2]
[355577417,1741313446295,-146.72425413,9.977e-05,2]
[355577418,1741313446307,-353.27574587,9.977e-05,2]
[355577419,1741313446318,-500.0,9.977e-05,2]
[355577420,1741313446331,-500.0,9.977e-05,2]
[355577421,1741313446340,-500.0,9.977e-05,2]
[355577422,1741313446351,-505.19481893,9.977e-05,2]
[355577423,1741313446360,-509.4941966,9.977e-05,2]
[355577424,1741313446370,-1046.35,9.977e-05,2]
[355577425,1741313446380,-612.42093017,9.977e-05,2]
[355577426,1741313446389,-500.0,9.977e-05,2]
[355577427,1741313446399,-502.41115692,9.977e-05,2]
[355577428,1741313446408,-197.92036651,9.977e-05,2]
[355577429,1741313446450,-302.07963349,9.977e-05,2]
[355577430,1741313446459,-500.0,9.977e-05,2]
[355577431,1741313446469,-400.64951685,9.977e-05,2]
[355577432,1741313494808,2761.5700658,0.0002,120]
[355577433,1741313948541,2053.1257,0.0002,120]
[355577439,1741314631068,6124.0,0.00013,30]
[355577451,1741314631958,-2347.49535776,8.219e-05,2]
[355577452,1741314631970,-562.57464224,8.219e-05,2]
[355577453,1741314631980,-150.0,8.431e-05,2]
[355577454,1741314631990,-162.68,8.563e-05,2]
[355577455,1741314632000,-228.5,8.597e-05,2]
[355577456,1741314632009,-2230.92,8.643e-05,2]
[355577457,1741314632018,-992.28,8.72e-05,2]
[355577458,1741314632028,-2000.0,8.727e-05,2]
[355577459,1741314632038,-207.04058908,8.801e-05,2]
[355577475,1741314637853,-42.95941092,8.801e-05,2]
[355577476,1741314637865,-1224.26,8.912e-05,2]
[355577477,1741314637875,-300.0,8.95e-05,2]
[355577478,1741314637884,-281.36477112,8.951e-05,2]
[355577479,1741314638051,-1334.84981002,8.951e-05,2]
[355577480,1741314638129,-22283.78541886,8.951e-05,2]
[355577481,1741314638139,-739.47,8.959e-05,2]
[355577482,1741314638149,-715.49,8.959e-05,2]
[355577483,1741314638158,-166.66,8.982e-05,2]
[355577484,1741314638167,-728.65,8.982e-05,2]
[355577485,1741314638176,-164.47,9.002e-05,2]
[355577486,1741314638187,-150.0,9.041e-05,2]
[355577487,1741314638196,-150.0,9.041e-05,2]
[355577488,1741314638205,-900.0,9.084e-05,2]
[355577490,1741314638215,-500.0,9.084e-05,2]
[355577492,1741314638225,-344.75,9.114e-05,2]
[355577494,1741314638234,-350.27,9.114e-05,2]
[355577496,1741314638243,-164.47,9.122e-05,2]
[355577498,1741314638252,-344.75,9.178e-05,2]
[355577500,1741314638262,-344.75,9.178e-05,2]
[355577502,1741314638271,-164.47,9.242e-05,2]
[355577504,1741314638280,-164.47,9.362e-05,2]
[355577506,1741314638289,-790.4,9.385e-05,2]
[355577508,1741314638298,-471.59,9.385e-05,2]
[355577510,1741314638307,-441.44,9.385e-05,2]
[355577511,1741314638317,-441.44,9.385e-05,2]
[355577512,1741314638326,-1061.0,9.406e-05,2]
[355577513,1741314638336,-164.47,9.482e-05,2]
[355577514,1741314638345,-150.0,9.562e-05,7]
[355577515,1741314638355,-164.47,9.602e-05,2]
[355577516,1741314638368,-150.0,9.722e-05,2]
[355577517,1741314638377,-164.47,9.722e-05,2]
[355577518,1741314638387,-1103.92046916,9.777e-05,2]
[355577519,1741314638396,-992.28,9.81e-05,2]
[355577520,1741314638406,-420.0,9.845e-05,2]
[355577521,1741314638415,-36.06411198,9.874e-05,2]
[355577522,1741314638428,-341.28998802,9.874e-05,2]
[355577523,1741314638438,-500.0,9.876e-05,2]
[355577524,1741314638448,-1000.0,9.876e-05,2]
[355577525,1741314638458,-19213.1899,9.877e-05,2]
[355577526,1741314638468,-21105.158,9.877e-05,2]
[355577527,1741314638478,-1061.0,9.901e-05,2]
[355577528,1741314638487,-344.75,9.936e-05,2]
[355577529,1741314638497,-344.75,9.936e-05,2]
[355577530,1741314638506,-344.75,9.936e-05,2]
[355577531,1741314638515,-344.75,9.936e-05,2]
[355577532,1741314638524,-150.0,9.936e-05,2]
[355577533,1741314638533,-967.212,9.96e-05,2]
[355577534,1741314638542,-2037.04,9.973e-05,2]
[355577535,1741314638551,-1579.95,9.973e-05,2]
[355577536,1741314638560,-3593.36011198,9.973e-05,2]
[355577537,1741314638572,-27.36988802,9.973e-05,2]
[355577538,1741314638582,-1641.94,9.973e-05,2]
[355577539,1741314638591,-1053.59,9.973e-05,2]
[355577540,1741314638600,-2110.26,9.973e-05,2]
[355577541,1741314638611,-500.0,9.973e-05,2]
[355577542,1741314638622,-2120.54,9.973e-05,2]
[355577543,1741314638631,-500.0,9.973e-05,2]
[355577544,1741314638640,-449.17030442,9.973e-05,2]
[355577545,1741314639842,-254.98887991,8.663e-05,2]
[355577546,1741314639854,-745.01112009,8.663e-05,2]
[355577547,1741314639867,-1000.0,9.746e-05,2]
[355577548,1741314639876,-1181.01969558,9.973e-05,2]
[355577549,1741314639883,-611.05449426,9.973e-05,2]
[355577550,1741314639895,-29.30550574,9.973e-05,2]
[355577551,1741314639905,-500.0,9.973e-05,2]
[355577552,1741314639914,-517.33,9.973e-05,2]
[355577553,1741314639923,-1151.11,9.973e-05,2]
[355577554,1741314639933,-88.1848638,9.973e-05,2]
[355577555,1741314639954,-1481.25759369,9.973e-05,2]
[355577556,1741314640096,-1009.48754251,9.973e-05,2]
[355577557,1741314640106,-2990.51245749,9.973e-05,2]
[355577558,1741314640119,-1011.81754251,9.973e-05,2]
[355577559,1741314640129,-1183.48245751,9.973e-05,2]
[355577560,1741314641221,-500.0,9.973e-05,2]
[355577561,1741314641457,-919.64754249,9.973e-05,2]
[355577562,1741314641466,-661.28090827,9.973e-05,2]
[355577563,1741314641479,-561.01022479,9.973e-05,2]
[355577564,1741314641490,-52.35886694,9.973e-05,2]
[355577565,1741314641499,-315.6992105,9.973e-05,2]
[355577566,1741314641529,-798.52623198,9.973e-05,2]
[355577567,1741314641540,-729.54455752,9.973e-05,2]
[355577568,1741314641549,-170.45544248,9.973e-05,2]
[355577569,1741314641560,-1030.82396,9.973e-05,2]
[355577570,1741314641572,-1583.27059752,9.973e-05,2]
[355577571,1741314641581,-235.60366677,9.973e-05,2]
[355577587,1741314642972,-264.39633323,9.973e-05,2]
[355577588,1741314642982,-666.36,9.973e-05,2]
[355577589,1741314642991,-274.10610515,9.973e-05,2]
[355577590,1741314643000,-500.0,9.973e-05,2]
[355577591,1741314643010,-500.0,9.973e-05,2]
[355577592,1741314643019,-500.0,9.973e-05,2]
[355577593,1741314643028,-500.0,9.973e-05,2]
[355577594,1741314643037,-4438.47802478,9.973e-05,2]
[355577595,1741314643049,-3163.5,9.973e-05,2]
[355577598,1741314645860,-480.63197522,9.973e-05,2]
[355577599,1741314645873,-1528.87,9.973e-05,2]
[355577600,1741314645884,-570.24,9.973e-05,2]
[355577601,1741314645895,-1187.62,9.973e-05,2]
[355577602,1741314645907,-511.2083038,9.973e-05,2]
[355577603,1741314645919,-517.98931125,9.973e-05,2]
[355577604,1741314645930,-432.3660585,9.973e-05,2]
[355577605,1741314645942,-500.0,9.973e-05,2]
[355577606,1741314645953,-314.40305123,9.973e-05,2]
[355577612,1741314735998,-500.0,9.975e-05,7]
[355577613,1741314840055,-1000.0,0.0001,7]
[355577614,1741314931837,-1000.0,0.0001,7]
[355577615,1741315467943,-2764.56,8.219e-05,2]
[355577616,1741315494389,-150.0,8.295e-05,2]
[355577617,1741315494415,-150.0,8.507e-05,2]
[355577618,1741315494441,-2253.44,8.523e-05,2]
[355577619,1741315494467,-250.0,8.69e-05,2]
[355577620,1741315494493,-500.0,8.74e-05,2]
[355577621,1741315509694,-300.0,8.947e-05,2]
[355577622,1741315509721,-23632.0,8.948e-05,2]
[355577630,1741315832047,-686.38615094,8.219e-05,2]
[355577631,1741315832262,-424.36648906,8.219e-05,2]
[355577632,1741315832280,-1515.57736,8.219e-05,2]
[355577633,1741315832290,-1004.63,8.735e-05,2]
[355577634,1741315832300,-2000.0,8.833e-05,2]
[355577635,1741315832310,-150.0,8.891e-05,2]
[355577636,1741315832319,-268.0,8.948e-05,2]
[355577637,1741315832328,-3011.19,8.971e-05,2]
[355577638,1741315832338,-186.23,8.994e-05,2]
[355577639,1741315832347,-550.0,9.041e-05,2]
[355577640,1741315832356,-550.0,9.041e-05,2]
[355577641,1741315832369,-150.0,9.041e-05,2]
[355577642,1741315832379,-380.0,9.068e-05,2]
[355577643,1741315832388,-150.0,9.068e-05,2]
[355577644,1741315832398,-800.0,9.084e-05,2]
[355577645,1741315832409,-500.0,9.084e-05,2]
[355577646,1741315832419,-169.99,9.176e-05,2]
[355577647,1741315832428,-300.0,9.2e-05,3]
[355577648,1741315832437,-186.23,9.234e-05,2]
[355577650,1741315832447,-600.0,9.3e-05,3]
[355577652,1741315832456,-900.0,9.4e-05,3]
[355577654,1741315832466,-186.23,9.474e-05,2]
[355577656,1741315832475,-1200.0,9.5e-05,3]
[355577658,1741315832484,-150.0,9.562e-05,7]
[355577660,1741315832493,-1500.0,9.6e-05,3]
[355577662,1741315832502,-300.0,9.7e-05,3]
[355577664,1741315832512,-186.23,9.714e-05,2]
[355577666,1741315832521,-150.0,9.716e-05,2]
[355577667,1741315832530,-300.0,9.8e-05,3]
[355577669,1741315832540,-1004.63,9.827e-05,2]
[355577671,1741315832549,-938.5327,9.873e-05,2]
[355577673,1741315832558,-529.1579,9.873e-05,2]
[355577675,1741315832567,-301.3464,9.873e-05,2]
[355577677,1741315832576,-150.0,9.873e-05,2]
[355577679,1741315832586,-11883.56453987,9.874e-05,2]
[355577681,1741315832601,-893.05654982,9.874e-05,2]
[355577683,1741315832614,-30.09631031,9.874e-05,2]
[355577685,1741315832624,-1481.2529,9.874e-05,2]
[355577688,1741315832633,-181.5062,9.874e-05,2]
[355577691,1741315832643,-285.2659,9.874e-05,2]
[355577693,1741315832652,-200.0,9.9e-05,2]
[355577695,1741315832661,-200.0,9.9e-05,2]
[355577697,1741315832671,-200.0,9.9e-05,2]
[355577698,1741315832680,-200.0,9.9e-05,2]
[355577699,1741315832690,-200.0,9.9e-05,2]
[355577701,1741315832699,-200.0,9.9e-05,2]
[355577703,1741315832708,-200.0,9.9e-05,2]
[355577705,1741315832717,-195.66,9.9e-05,2]
[355577707,1741315832726,-300.0,9.9e-05,3]
[355577709,1741315832735,-200.0,9.9e-05,2]
[355577711,1741315832744,-344.75,9.936e-05,2]
[355577713,1741315832753,-773.77,9.946e-05,2]
[355577715,1741315832763,-41.40459135,9.955e-05,2]
[355577717,1741315832775,-328.01300429,9.955e-05,2]
[355577740,1741315838074,-506.27057534,9.955e-05,2]
[355577741,1741315838083,-461.42786584,9.96e-05,2]
[355577742,1741315838095,-2536.05874927,9.96e-05,2]
[355577743,1741315838104,-605.32,9.963e-05,2]
[355577744,1741315838115,-500.0,9.963e-05,2]
[355577745,1741315838131,-500.0,9.963e-05,2]
[355577746,1741315838141,-500.0,9.963e-05,2]
[355577747,1741315838150,-500.0,9.963e-05,2]
[355577748,1741315838161,-500.0,9.963e-05,2]
[355577749,1741315838170,-275.42710116,9.963e-05,2]
[355577750,1741315838179,-500.0,9.963e-05,2]
[355577751,1741315838190,-500.0,9.963e-05,2]
[355577752,1741315838200,-500.0,9.963e-05,2]
[355577753,1741315838211,-500.0,9.963e-05,2]
[355577754,1741315838221,-466.55144164,9.963e-05,2]
[355577755,1741315838231,-9375.93503692,9.964e-05,2]
[355577756,1741315838250,-88504.97883899,9.964e-05,2]
[355577757,1741315838261,-64631.37134424,9.964e-05,2]
[355577765,1741315840469,-654.14201999,9.871e-05,2]
[355577782,1741315844176,-345.85798001,9.871e-05,2]
[355577783,1741315844185,-500.0,9.963e-05,2]
[355577784,1741315844195,-500.0,9.963e-05,2]
[355577785,1741315844207,-500.0,9.963e-05,2]
[355577786,1741315844217,-394.68202408,9.963e-05,2]
[355577787,1741315844226,-359.44743589,9.963e-05,2]
[355577788,1741315844238,-140.55256411,9.963e-05,2]
[355577789,1741315844247,-358.57348776,9.963e-05,2]
[355577790,1741315844256,-472.05954678,9.963e-05,2]
[355577791,1741315844265,-500.0,9.963e-05,2]
[355577792,1741315844275,-500.0,9.963e-05,2]
[355577793,1741315844284,-500.0,9.963e-05,2]
[355577794,1741315844294,-5931.21440135,9.964e-05,2]
[355577795,1741315844350,-3549.96844399,9.964e-05,2]
[355577808,1741315846072,-40409.66939244,9.964e-05,2]
[355577809,1741315846084,-49213.03305148,9.964e-05,2]
[355577810,1741315846096,-4672.00804507,9.964e-05,2]
[355577811,1741315846107,-654.76770521,9.964e-05,2]
[355577812,1741315846123,-879.41035815,9.964e-05,2]
[355577813,1741315846155,-470.22347517,9.964e-05,2]
[355577814,1741315846166,-755.30239735,9.964e-05,2]
[355577815,1741315846178,-1936.62483291,9.964e-05,2]
[355577816,1741315846195,-8936.01055095,9.964e-05,2]
[355577817,1741315846208,-769.686283,9.964e-05,2]
[355577818,1741315846274,-335.30570427,9.964e-05,2]
[355577819,1741315846289,-1241.98843154,9.964e-05,2]
[355577820,1741315846370,-3104.192539,9.964e-05,2]
[355577821,1741315846384,-680.31065153,9.964e-05,2]
[355577822,1741315846396,-826.03184212,9.964e-05,2]
[355577823,1741315846407,-407.68809329,9.964e-05,2]
[355577824,1741315846418,-109618.97049883,9.964e-05,2]
[355577825,1741315846430,-5604.33654711,9.964e-05,2]
[355577826,1741315846442,-255.29844488,9.964e-05,2]
[355577827,1741315846454,-379.89623438,9.964e-05,2]
[355577828,1741315846465,-543.2619752,9.964e-05,2]
[355577829,1741316128850,-590.99947317,9.973e-05,7]
[355577830,1741316212932,-1500.0,8.666e-05,2]
[355577831,1741316212958,-5898.322217,8.927e-05,2]
[355577832,1741316212986,-153.45,8.973e-05,2]
[355577833,1741316213012,-300.0,8.986e-05,2]
[355577834,1741316213038,-22148.227783,8.987e-05,2]
[355577835,1741316220439,-2000.0,0.0001,7]
[355577836,1741316326140,-581.71,8.617e-05,2]
[355577837,1741316326168,-200.0,8.622e-05,2]
[355577838,1741316326192,-2101.17,8.634e-05,2]
[355577839,1741316326219,-250.0,8.649e-05,2]
[355577840,1741316326245,-500.0,8.65e-05,2]
[355577841,1741316326271,-527.7,8.65e-05,2]
[355577842,1741316326300,-150.0,8.818e-05,2]
[355577843,1741316326327,-150.0,8.956e-05,2]
[355577844,1741316326355,-1751.772217,8.987e-05,2]
[355577845,1741316358160,622.1,8.733e-05,2]
[355577846,1741316399364,501.8097629,0.0002,120]
[355577855,1741317032299,-1300.0,8.22e-05,2]
[355577856,1741317032312,-150.0,8.397e-05,2]
[355577857,1741317032322,-515.47,8.46e-05,2]
[355577858,1741317032331,-8116.05785457,8.481e-05,2]
[355577859,1741317032501,-5514.98214543,8.481e-05,2]
[355577860,1741317032511,-754.03,8.494e-05,2]
[355577861,1741317032526,-536.35,8.519e-05,2]
[355577862,1741317032536,-531.94,8.57e-05,2]
[355577863,1741317032546,-200.0,8.575e-05,2]
[355577864,1741317032556,-997.22,8.585e-05,2]
[355577865,1741317032567,-2025.88,8.59e-05,2]
[355577866,1741317032577,-174.27,8.613e-05,2]
[355577867,1741317032586,-170.13,8.632e-05,2]
[355577868,1741317032596,-2000.0,8.661e-05,2]
[355577869,1741317032606,-300.0,8.664e-05,2]
[355577870,1741317032617,-1303.06,8.665e-05,2]
[355577872,1741317032627,-1871.97496989,8.668e-05,2]
[355577874,1741317032637,-171.78,8.698e-05,2]
[355577876,1741317032646,-848.64,8.71e-05,2]
[355577878,1741317032658,-153.45,9.015e-05,2]
[355577880,1741317032667,-150.0,9.042e-05,2]
[355577882,1741317032676,-150.0,9.042e-05,2]
[355577884,1741317032686,-153.45,9.057e-05,2]
[355577886,1741317032696,-1000.0,9.074e-05,2]
[355577888,1741317032706,-500.0,9.084e-05,2]
[355577890,1741317032714,-500.0,9.084e-05,2]
[355577892,1741317032724,-153.45,9.099e-05,2]
[355577894,1741317032734,-153.45,9.141e-05,2]
[355577896,1741317032743,-448.47,9.142e-05,2]
[355577897,1741317032752,-153.45,9.184e-05,2]
[355577900,1741317032763,-329.39654137,9.216e-05,2]
[355577901,1741317032772,-153.45,9.226e-05,2]
[355577903,1741317032782,-150.0,9.226e-05,2]
[355577905,1741317032791,-153.45,9.268e-05,2]
[355577907,1741317032800,-153.45,9.31e-05,2]
[355577909,1741317032809,-170.13,9.351e-05,2]
[355577911,1741317032818,-153.45,9.353e-05,2]
[355577913,1741317032827,-153.45,9.395e-05,2]
[355577915,1741317032837,-153.45,9.437e-05,2]
[355577917,1741317032846,-153.45,9.479e-05,2]
[355577919,1741317032855,-395.67847794,9.48e-05,2]
[355577921,1741317032864,-153.45,9.521e-05,2]
[355577923,1741317032873,-420.0,9.531e-05,2]
[355577925,1741317032882,-434.45109422,9.557e-05,2]
[355577927,1741317032891,-150.0,9.562e-05,7]
[355577929,1741317032901,-153.45,9.564e-05,2]
[355577931,1741317032913,-344.94095522,9.59e-05,2]
[355577932,1741317032928,-955.05904478,9.59e-05,2]
[355577933,1741317032942,-2124.45236666,9.6e-05,2]
[355577934,1741317032952,-2501.25394069,9.6e-05,2]
[355577935,1741317032963,-293.49962424,9.6e-05,2]
[355577936,1741317032987,-580.99624631,9.6e-05,2]
[355577937,1741317033001,-8894.94697828,9.6e-05,2]
[355577960,1741317038160,-1233.42756601,9.6e-05,2]
[355577961,1741317038172,-522.64302678,9.6e-05,2]
[355577962,1741317038184,-12882.87000009,9.6e-05,2]
[355577963,1741317038216,-560.05861585,9.6e-05,2]
[355577964,1741317038227,-5548.8,9.6e-05,2]
[355577965,1741317038262,-12592.04216613,9.6e-05,2]
[355577966,1741317038274,-16710.41070131,9.6e-05,2]
[355577967,1741317038370,-2478.53430862,9.6e-05,2]
[355577968,1741317038426,-749.9699998,9.6e-05,2]
[355577969,1741317038442,-991.28672734,9.6e-05,2]
[355578032,1741317040234,-599.99596474,9.6e-05,2]
[355578033,1741317040497,-767.32909967,9.6e-05,2]
[355578034,1741317040558,-380.8319,9.6e-05,2]
[355578059,1741317043515,-2194.856,9.6e-05,2]
[355578060,1741317043527,-800.069992,9.6e-05,2]
[355578061,1741317043545,-4325.99470946,9.6e-05,2]
[355578062,1741317043556,-1152.9712,9.6e-05,2]
[355578134,1741317044340,-798.19146953,9.6e-05,2]
[355578136,1741317044351,-1705.98933033,9.6e-05,2]
[355578141,1741317044384,-38020.31284794,9.6e-05,2]
[355578143,1741317044396,-6266.8835218,9.6e-05,2]
[355578146,1741317044411,-7040.52692969,9.6e-05,2]
[355578148,1741317044422,-676.16000008,9.6e-05,2]
[355578151,1741317044444,-15275.11202038,9.6e-05,2]
[355578153,1741317044455,-1017.6830018,9.6e-05,2]
[355578155,1741317044466,-1189.88173211,9.6e-05,2]
[355578157,1741317044478,-446.51173508,9.6e-05,2]
[355578159,1741317044489,-2782.7,9.6e-05,2]
[355578163,1741317044511,-3867.34,9.6e-05,2]
[355578196,1741317046215,-307.49,8.954e-05,2]
[355578197,1741317046225,-58329.58822018,9.6e-05,2]
[355578198,1741317046256,-7356.42874505,9.6e-05,2]
[355578199,1741317046265,-153.45,9.606e-05,2]
[355578200,1741317046275,-153.45,9.648e-05,2]
[355578201,1741317046284,-997.22,9.658e-05,2]
[355578202,1741317046294,-250.0,9.675e-05,2]
[355578203,1741317046303,-153.45,9.69e-05,2]
[355578204,1741317046312,-707.20125495,9.765e-05,2]
[355578205,1741317046323,-304.02282262,9.765e-05,2]
[355578206,1741317046332,-1123.24376909,9.765e-05,2]
[355578207,1741317046343,-10.68943183,9.765e-05,2]
[355578208,1741317046352,-1019.0669637,9.774e-05,2]
[355578209,1741317046360,-129.54360447,9.774e-05,2]
[355578210,1741317046377,-926.56875948,9.774e-05,2]
[355578211,1741317046387,-1014.87396461,9.8e-05,2]
[355578212,1741317046397,-2469.42805109,9.8e-05,2]
[355578213,1741317046406,-1585.91000023,9.8e-05,2]
[355578214,1741317046417,-169.229976,9.8e-05,2]
[355578215,1741317046426,-472.6292,9.864e-05,2]
[355578216,1741317046436,-989.2789,9.87e-05,2]
[355578217,1741317046445,-500.0,9.871e-05,2]